bitfinex-derivatives/quotes_BTCF0:USTF0_20250308
["timestamp","ask_amount","ask_price","bid_price","bid_amount"]
[1741413496529,0.07755091,86210.0,86209.0,0.1172]
[1741413497235,0.07755091,86210.0,86209.0,0.233218]
[1741413500030,0.07755091,86210.0,86209.0,0.81236703]
[1741413502445,0.08735091,86210.0,86209.0,0.81236703]
[1741413504043,0.08735091,86210.0,86209.0,0.89629718]
[1741413504249,0.07755091,86210.0,86209.0,0.89629718]
[1741413506049,0.0123411,86210.0,86209.0,0.89629718]
[1741413506246,0.05080554,86211.0,86209.0,0.89629718]
[1741413506949,0.1160167,86210.0,86209.0,0.89629718]
[1741413508042,0.14284404,86210.0,86209.0,0.89629718]
[1741413511141,0.14284404,86210.0,86209.0,1.01231518]
[1741413512644,0.14284404,86210.0,86209.0,1.18693766]
[1741413515353,0.14291431,86210.0,86209.0,1.18693766]
[1741413515759,0.07770453,86210.0,86209.0,1.18693766]
[1741413516557,7.027e-05,86210.0,86209.0,1.18693766]
[1741413517452,0.02669735,86210.0,86209.0,1.18693766]
[1741413517957,0.14271405,86210.0,86209.0,1.18693766]
[1741413526060,0.14271405,86210.0,86209.0,1.30295566]
[1741413526853,0.07750427,86210.0,86209.0,1.30295566]
[1741413528254,0.07750427,86210.0,86209.0,1.18693766]
[1741413528565,0.10372263,86210.0,86209.0,1.18693766]
[1741413531366,0.46452263,86210.0,86209.0,1.18693766]
[1741413531957,0.46452263,86210.0,86209.0,0.49177063]
[1741413533165,0.10372263,86210.0,86209.0,0.49177063]
[1741413537474,0.02621836,86210.0,86209.0,0.49177063]
[1741413537775,0.05080554,86211.0,86209.0,0.49177063]
[1741413537967,0.1160167,86210.0,86209.0,0.49177063]
[1741413538768,0.1493559,86210.0,86209.0,0.49177063]
[1741413539175,0.1493559,86210.0,86209.0,0.20113015]
[1741413542477,0.1493559,86210.0,86209.0,0.49177063]
[1741413547976,0.08414517,86210.0,86209.0,0.49177063]
[1741413555988,0.1160167,86210.0,86209.0,0.49177063]
[1741413557683,0.03631459,86210.0,86209.0,0.77921544]
[1741413557890,0.08400595,86211.0,86209.0,0.77921544]
[1741413558194,0.1160167,86210.0,86209.0,0.77921544]
[1741413559583,0.1160167,86210.0,86209.0,0.69528529]
[1741413561894,0.1160167,86210.0,86209.0,0.1172]
[1741413567088,0.1160167,86210.0,86209.0,0.20113015]
[1741413569791,0.05080605,86210.0,86209.0,0.49177063]
[1741413573298,0.09109663,86211.0,86209.0,0.49177063]
[1741413573299,0.07669198,86211.0,86209.0,0.49177063]
[1741413573801,0.19270728,86211.0,86210.0,0.058]
[1741413574192,0.19270728,86211.0,86210.0,0.19833015]
[1741413574498,0.19270728,86211.0,86210.0,0.24122354]
[1741413576197,0.1130059,86211.0,86210.0,0.24122354]
[1741413576403,0.1710137,86211.0,86210.0,0.24122354]
[1741413576599,0.1710137,86211.0,86210.0,0.53186402]
[1741413578195,0.20330221,86211.0,86210.0,0.53186402]
[1741413579298,0.56410221,86211.0,86210.0,0.49002763]
[1741413579501,0.56410221,86211.0,86210.0,0.77747244]
[1741413582297,0.24380221,86211.0,86210.0,0.77747244]
[1741413582496,0.60460221,86211.0,86210.0,0.77747244]
[1741413583699,0.60460221,86211.0,86210.0,0.19938715]
[1741413584799,0.53938615,86211.0,86210.0,0.19938715]
[1741413587505,0.53938615,86211.0,86210.0,0.115457]
[1741413590515,0.17858615,86211.0,86210.0,0.115457]
[1741413590710,0.53938615,86211.0,86210.0,0.115457]
[1741413593320,0.49888615,86211.0,86210.0,0.115457]
[1741413593803,0.57408615,86211.0,86210.0,0.115457]
[1741413595204,0.57408615,86211.0,86210.0,0.19938715]
[1741413595609,0.49888615,86211.0,86210.0,0.19938715]
[1741413595818,0.57408615,86211.0,86210.0,0.19938715]
[1741413596719,0.57708615,86211.0,86210.0,0.19938715]
[1741413596913,0.58008615,86211.0,86210.0,0.19938715]
[1741413600618,0.52207835,86211.0,86210.0,0.19938715]
[1741413600822,0.52207835,86211.0,86210.0,0.115457]
[1741413603010,0.45686216,86211.0,86210.0,0.115457]
[1741413603210,0.57287746,86211.0,86210.0,0.115457]
[1741413603525,0.57287746,86211.0,86210.0,0.31540385]
[1741413603821,0.57087746,86211.0,86210.0,0.31540385]
[1741413604425,0.56887746,86211.0,86210.0,0.2314737]
[1741413604623,0.01886216,86211.0,86210.0,0.23159354]
[1741413604823,0.02869407,86214.0,86213.0,0.1160126]
[1741413605016,0.1160491,86217.0,86216.0,0.1160086]
[1741413605217,0.1160091,86217.0,86216.0,0.1160059]
[1741413605418,0.1160091,86217.0,86216.0,0.15889929]
[1741413605918,0.00064001,86219.0,86218.0,0.1160059]
[1741413606220,0.1160339,86229.0,86228.0,0.1159924]
[1741413606526,0.1159939,86229.0,86228.0,0.15888579]
[1741413606727,0.14482802,86229.0,86228.0,0.15888579]
[1741413607026,0.14482802,86229.0,86228.0,0.24281594]
[1741413607323,0.14482522,86229.0,86228.0,0.24293578]
[1741413608121,0.14482522,86229.0,86228.0,0.12794338]
[1741413608322,0.14482522,86229.0,86228.0,0.18454338]
[1741413608629,0.14482522,86229.0,86228.0,0.18554338]
[1741413610228,0.14482522,86229.0,86228.0,0.10161323]
[1741413610819,0.14482522,86229.0,86228.0,0.10061323]
[1741413611129,0.14482522,86229.0,86228.0,0.10161323]
[1741413614924,0.46479412,86229.0,86220.0,0.08052269]
[1741413615126,0.1160113,86214.0,86213.0,0.053]
[1741413615732,0.4768113,86214.0,86213.0,0.053]
[1741413615931,0.5863113,86214.0,86213.0,0.053]
[1741413616230,0.05080841,86207.0,86206.0,0.52527255]
[1741413616530,0.41160841,86207.0,86206.0,0.52527255]
[1741413616735,0.116022,86206.0,86205.0,0.00017399]
[1741413617029,0.1160368,86195.0,86194.0,0.90416831]
[1741413617226,0.1911968,86195.0,86194.0,0.90416831]
[1741413617427,0.07516,86195.0,86194.0,1.02020651]
[1741413617726,0.07516,86209.0,86208.0,0.1160193]
[1741413618245,0.02878507,86214.0,86213.0,0.1160126]
[1741413618423,0.00017365,86215.0,86214.0,0.1160113]
[1741413618625,0.00017365,86215.0,86214.0,0.4768113]
[1741413618922,0.00017365,86215.0,86214.0,0.5873113]
[1741413618923,0.14492978,86215.0,86214.0,0.5873113]
[1741413619324,0.02891988,86215.0,86214.0,0.6407113]
[1741413619522,0.14492978,86215.0,86214.0,0.5247]
[1741413620830,0.14892978,86215.0,86214.0,0.5247]
[1741413622332,0.14892978,86215.0,86214.0,0.6407113]
[1741413622928,0.14692978,86215.0,86214.0,0.6387113]
[1741413623438,0.03091988,86215.0,86214.0,0.5227]
[1741413623628,0.14692978,86215.0,86214.0,0.6387113]
[1741413624328,0.14692978,86215.0,86214.0,0.5227]
[1741413625030,0.20162978,86215.0,86214.0,0.5227]
[1741413625228,0.19962978,86215.0,86214.0,0.5187]
[1741413628831,0.19962978,86215.0,86214.0,0.1579]
[1741413629733,0.19945613,86215.0,86214.0,0.1579]
[1741413629940,0.13442443,86215.0,86214.0,0.1579]
[1741413630641,0.16319586,86215.0,86214.0,0.1579]
[1741413631743,0.08347143,86215.0,86214.0,0.1579]
[1741413632531,0.19948133,86215.0,86214.0,0.2739113]
[1741413635245,0.19948133,86215.0,86214.0,0.1579]
[1741413636341,0.19948133,86215.0,86214.0,0.2739113]
[1741413637646,0.19948133,86215.0,86214.0,0.1579]
[1741413638938,0.14478133,86215.0,86214.0,0.1579]
[1741413639149,0.14478133,86215.0,86214.0,0.2739113]
[1741413639643,0.14478133,86215.0,86214.0,0.1579]
[1741413640246,0.19698133,86215.0,86214.0,0.1579]
[1741413640547,0.13177599,86215.0,86214.0,0.1579]
[1741413640761,0.13177599,86215.0,86214.0,0.2739113]
[1741413641950,0.15983089,86215.0,86214.0,0.2739113]
[1741413642853,0.15983089,86215.0,86214.0,0.1579]
[1741413644953,0.15983089,86215.0,86214.0,0.2739113]
[1741413645954,0.15983089,86215.0,86214.0,0.1579]
[1741413649252,0.1962648,86215.0,86214.0,0.2739113]
[1741413649459,0.1440648,86215.0,86214.0,0.2739113]
[1741413650761,0.07885979,86215.0,86214.0,0.2739113]
[1741413650951,0.1160475,86217.0,86216.0,0.1160086]
[1741413651154,0.0508425,86217.0,86216.0,0.1160086]
[1741413651358,0.0508425,86217.0,86216.0,0.11984119]
[1741413651359,0.07919172,86217.0,86216.0,0.11984119]
[1741413652048,0.02834922,86217.0,86216.0,0.11984119]
[1741413652255,0.1740434,86221.0,86220.0,0.1160032]
[1741413652453,0.1740034,86221.0,86220.0,0.4768032]
[1741413652853,0.1740034,86221.0,86220.0,0.48063579]
[1741413653453,0.2287034,86221.0,86220.0,0.48063579]
[1741413654258,0.1740034,86221.0,86220.0,0.48063579]
[1741413654954,0.0580011,86221.0,86220.0,0.48063579]
[1741413655553,0.08692987,86221.0,86220.0,0.48063579]
[1741413656157,0.14032987,86221.0,86220.0,0.48063579]
[1741413657665,0.08232877,86221.0,86220.0,0.48063579]
[1741413657866,0.02892877,86221.0,86220.0,0.48063579]
[1741413658062,0.00021399,86223.0,86220.0,0.36463259]
[1741413658368,0.03652828,86223.0,86222.0,0.1160005]
[1741413658559,0.116,86223.0,86222.0,0.0579997]
[1741413658957,0.116,86223.0,86222.0,0.4187997]
[1741413659161,0.116,86223.0,86222.0,0.42263229]
[1741413659967,0.15229731,86223.0,86222.0,0.42263229]
[1741413660360,0.20829731,86223.0,86222.0,0.42263229]
[1741413660553,0.15229731,86223.0,86222.0,0.42263229]
[1741413660753,4e-05,86226.0,86225.0,0.1159965]
[1741413661264,4e-05,86239.0,86231.0,0.0579938]
[1741413661470,0.1159631,86250.0,86249.0,0.1159615]
[1741413661665,0.1678631,86250.0,86249.0,0.1159615]
[1741413661857,0.20413791,86250.0,86249.0,0.1159615]
[1741413662259,0.25763791,86250.0,86249.0,0.11607008]
[1741413662458,0.25763791,86250.0,86249.0,0.00010858]
[1741413662955,0.25763791,86250.0,86249.0,0.05360858]
[1741413663161,0.25763791,86250.0,86249.0,0.22087278]
[1741413663853,0.1924598,86250.0,86249.0,0.22087278]
[1741413665260,0.1924598,86250.0,86249.0,0.10490858]
[1741413666071,0.1924598,86250.0,86249.0,0.22939793]
[1741413668159,0.14167481,86250.0,86249.0,0.22939793]
[1741413668370,0.25763761,86250.0,86249.0,0.22939793]
[1741413668567,0.03627481,86250.0,86249.0,0.22939793]
[1741413668769,0.1159907,86259.0,86258.0,0.1159521]
[1741413669168,0.20534249,86259.0,86258.0,0.1159521]
[1741413669361,0.20530249,86259.0,86258.0,0.2195521]
[1741413669966,0.20530249,86259.0,86258.0,0.1036]
[1741413670877,0.25890249,86259.0,86258.0,0.0528]
[1741413671073,0.25890249,86259.0,86251.0,0.0524]
[1741413671269,0.1159602,86252.0,86251.0,0.1028]
[1741413671965,0.109,86253.0,86250.0,0.00017399]
[1741413672167,0.109,86251.0,86250.0,0.00017399]
[1741413672370,0.2249615,86251.0,86250.0,0.00017399]
[1741413673272,0.2249615,86251.0,86250.0,0.10297399]
[1741413674374,0.2249615,86251.0,86250.0,0.15467399]
[1741413674375,0.15978316,86251.0,86250.0,0.15467399]
[1741413675475,0.04382166,86251.0,86250.0,0.27063679]
[1741413675775,0.15978316,86251.0,86250.0,0.27063679]
[1741413676077,0.15978316,86251.0,86250.0,0.15467399]
[1741413676575,0.15978316,86251.0,86250.0,0.10297399]
[1741413676874,0.15978316,86251.0,86250.0,0.05057399]
[1741413677269,0.15978316,86251.0,86250.0,0.10177399]
[1741413679380,0.1159817,86236.0,86235.0,1.10117207]
[1741413679579,0.1159817,86236.0,86235.0,0.36953207]
[1741413680583,0.1159897,86230.0,86228.0,0.3608]
[1741413680776,0.1911097,86230.0,86228.0,0.3608]
[1741413681673,0.1911097,86230.0,86227.0,0.00017399]
[1741413682381,0.2446097,86230.0,86227.0,0.00017399]
[1741413682782,0.2446097,86230.0,86229.0,0.01053383]
[1741413682984,0.2446097,86230.0,86229.0,0.00173962]
[1741413683175,0.1159924,86228.0,86227.0,0.00017399]
[1741413683880,0.1159924,86228.0,86227.0,0.00866399]
[1741413684075,0.1159924,86228.0,86227.0,0.00017399]
[1741413687387,0.1159924,86228.0,86227.0,0.69230098]
[1741413688486,0.1911124,86228.0,86227.0,0.70101169]
[1741413689880,0.5519124,86228.0,86227.0,0.70101169]
[1741413693589,0.6045124,86228.0,86227.0,0.70101169]
[1741413694394,0.4767924,86228.0,86227.0,0.70101169]
[1741413694893,0.6045124,86228.0,86227.0,0.70101169]
[1741413695486,0.6035124,86228.0,86227.0,0.70101169]
[1741413703815,0.6035124,86228.0,86227.0,0.80161169]
[1741413705018,4e-05,86229.0,86227.0,0.80161169]
[1741413705217,4e-05,86229.0,86228.0,0.1159924]
[1741413705515,0.3608,86234.0,86228.0,0.1159924]
[1741413705711,0.1159911,86229.0,86228.0,0.2191924]
[1741413706215,4e-05,86230.0,86228.0,0.2191924]
[1741413706420,0.1159911,86229.0,86228.0,0.2191911]
[1741413707014,0.1159911,86229.0,86228.0,0.1032]
[1741413708109,0.1687911,86229.0,86228.0,0.1032]
[1741413711415,0.1159911,86229.0,86228.0,0.1032]
[1741413712519,0.1159911,86229.0,86228.0,0.39454473]
[1741413714219,0.1159911,86229.0,86228.0,0.39837732]
[1741413715216,4e-05,86230.0,86229.0,0.1159911]
[1741413715421,0.3608,86233.0,86232.0,0.1159871]
[1741413715621,0.4767857,86233.0,86232.0,0.1159871]
[1741413716015,0.4767857,86233.0,86232.0,0.11981969]
[1741413716217,0.4767857,86233.0,86232.0,0.22511969]
[1741413716418,0.41159012,86233.0,86232.0,0.22511969]
[1741413718722,0.05083042,86234.0,86233.0,0.1159857]
[1741413719112,0.00017399,86238.0,86237.0,0.1159803]
[1741413719314,0.11615299,86238.0,86237.0,0.11981289]
[1741413719509,0.11615299,86238.0,86237.0,0.22011289]
[1741413720210,4e-05,86241.0,86237.0,0.22011289]
[1741413720409,0.1159577,86257.0,86256.0,0.1159523]
[1741413720612,0.1159575,86254.0,86253.0,0.3608]
[1741413720917,0.1159575,86254.0,86253.0,0.63249139]
[1741413721114,0.0579778,86256.0,86255.0,0.1159561]
[1741413721310,0.0580178,86256.0,86255.0,0.1159561]
[1741413721522,0.20910209,86259.0,86258.0,0.1159521]
[1741413722516,0.20910209,86259.0,86258.0,0.1648521]
[1741413723521,0.20910209,86259.0,86258.0,0.0489]
[1741413724218,0.20910209,86259.0,86258.0,0.1025]
[1741413724425,0.20910209,86259.0,86258.0,0.2184521]
[1741413726818,0.14392768,86259.0,86258.0,0.2184521]
[1741413728427,0.1159492,86261.0,86260.0,0.1159494]
[1741413728622,0.1159492,86261.0,86260.0,0.4767494]
[1741413729226,0.1159467,86262.0,86261.0,0.1159467]
[1741413729425,0.1159467,86262.0,86261.0,0.2189467]
[1741413730127,4e-05,86264.0,86261.0,0.2189467]
[1741413730333,4e-05,86264.0,86263.0,0.1159454]
[1741413730925,0.1159412,86267.0,86266.0,0.1159413]
[1741413731134,0.1159412,86267.0,86266.0,0.4767413]
[1741413731434,0.14613758,86267.0,86266.0,0.4767413]
[1741413731630,0.14613758,86267.0,86266.0,0.5779413]
[1741413736329,0.03019638,86267.0,86266.0,0.5779413]
[1741413736536,0.0498,86274.0,86266.0,0.5779413]
[1741413736537,0.1573608,86281.0,86280.0,0.1159225]
[1741413737237,0.03059533,86281.0,86280.0,0.1159225]
[1741413737438,0.115919,86283.0,86282.0,0.1159198]
[1741413738239,0.115919,86283.0,86282.0,0.1676198]
[1741413740433,0.14755768,86283.0,86282.0,0.1676198]
[1741413740933,0.115919,86283.0,86282.0,0.1676198]
[1741413744335,0.115919,86283.0,86282.0,0.5284198]
[1741413747634,0.115919,86283.0,86282.0,0.4125]
[1741413747840,0.271119,86283.0,86282.0,0.3608]
[1741413748730,0.271119,86283.0,86279.0,0.00851473]
[1741413748731,0.1159225,86280.0,86279.0,0.00851473]
[1741413749030,0.1159252,86278.0,86276.0,0.76133969]
[1741413749236,0.1159252,86278.0,86277.0,0.90979739]
[1741413749640,0.2187252,86278.0,86277.0,0.90979739]
[1741413750347,0.2187252,86278.0,86277.0,0.9183807]
[1741413751136,0.2187252,86278.0,86277.0,0.6970807]
[1741413752739,0.1159266,86277.0,86276.0,0.76293969]
[1741413752947,0.1159266,86277.0,86276.0,0.76133969]
[1741413753248,0.2137266,86277.0,86276.0,0.76133969]
[1741413753843,0.2897266,86277.0,86276.0,0.76133969]
[1741413754246,0.2897266,86277.0,86276.0,0.77005762]
[1741413755538,0.6505266,86277.0,86276.0,0.62513491]
[1741413756134,0.6505266,86277.0,86276.0,0.56740491]
[1741413756439,0.6505266,86277.0,86276.0,0.50978491]
[1741413759046,0.6505266,86277.0,86276.0,0.00871793]
[1741413759239,0.1159319,86273.0,86272.0,0.00017389]
[1741413760145,0.2112319,86273.0,86272.0,0.00017389]
[1741413763945,0.2112319,86273.0,86272.0,0.00868599]
[1741413765757,0.2112319,86273.0,86272.0,0.76924175]
[1741413765947,0.2872319,86273.0,86272.0,0.76924175]
[1741413769852,0.2873519,86273.0,86272.0,0.76924175]
[1741413776653,0.6481519,86273.0,86272.0,0.76924175]
[1741413777162,0.58298489,86273.0,86272.0,0.76924175]
[1741413782762,0.58298489,86273.0,86272.0,0.46626995]
[1741413782955,0.73298489,86273.0,86272.0,0.07299485]
[1741413783359,0.73298489,86273.0,86272.0,5e-08]
[1741413784065,0.1159427,86265.0,86264.0,4e-08]
[1741413784367,0.4767427,86265.0,86264.0,4e-08]
[1741413785066,0.5726427,86265.0,86264.0,4e-08]
[1741413785262,0.5726427,86265.0,86247.0,0.0986]
[1741413785263,0.1159655,86248.0,86247.0,0.0986]
[1741413785462,0.115979,86238.0,86237.0,0.00383259]
[1741413785662,0.115979,86238.0,86237.0,0.0927381]
[1741413785864,0.476779,86238.0,86237.0,0.08394445]
[1741413786067,0.51495852,86238.0,86237.0,0.08394445]
[1741413786569,0.1159897,86230.0,86229.0,0.36097389]
[1741413786759,0.1921497,86230.0,86229.0,0.41157389]
[1741413787267,0.1921497,86230.0,86229.0,0.05965964]
[1741413787866,0.1921497,86230.0,86229.0,0.10865964]
[1741413788956,0.12694968,86230.0,86229.0,0.10865964]
[1741413791066,0.17454968,86230.0,86229.0,0.10865964]
[1741413796276,0.12694968,86230.0,86229.0,0.10865964]
[1741413799279,4e-05,86231.0,86229.0,0.22465064]
[1741413799578,0.07616,86230.0,86229.0,0.10865964]
[1741413800770,0.1159859,86233.0,86229.0,0.10865964]
[1741413800970,4e-05,86231.0,86230.0,0.1159897]
[1741413801170,4e-05,86231.0,86230.0,0.2139897]
[1741413801471,0.07612,86232.0,86230.0,0.2139897]
[1741413802276,0.07616,86232.0,86230.0,0.098]
[1741413802579,0.1159884,86231.0,86230.0,0.098]
[1741413803175,0.1920284,86231.0,86230.0,0.098]
[1741413813779,0.1159884,86231.0,86230.0,0.098]
[1741413813973,0.1917084,86231.0,86230.0,0.098]
[1741413814585,0.12651289,86231.0,86230.0,0.098]
[1741413815074,0.06131738,86231.0,86230.0,0.098]
[1741413815590,0.07568,86231.0,86230.0,0.098]
[1741413815888,0.1916684,86231.0,86230.0,0.098]
[1741413816678,0.1916684,86231.0,86230.0,0.18194445]
[1741413818685,0.2371684,86231.0,86230.0,0.18194445]
[1741413819290,0.2836684,86231.0,86230.0,0.18194445]
[1741413820593,0.6444684,86231.0,86230.0,0.18194445]
[1741413820794,0.6940684,86231.0,86230.0,0.03792445]
[1741413821482,0.1159897,86230.0,86229.0,0.00905964]
[1741413821882,0.2100897,86230.0,86229.0,0.00905964]
[1741413822596,0.2100897,86230.0,86229.0,0.04698409]
[1741413824287,0.2100897,86230.0,86229.0,0.09448409]
[1741413824485,0.07552,86230.0,86229.0,0.09448409]
[1741413824681,0.07552,86230.0,86229.0,0.21047519]
[1741413824886,0.1915097,86230.0,86229.0,0.21047519]
[1741413825097,0.1915097,86230.0,86229.0,0.09448409]
[1741413825482,0.2411097,86230.0,86229.0,0.09448409]
[1741413825682,0.2877097,86230.0,86229.0,0.09448409]
[1741413827094,0.22251326,86230.0,86229.0,0.09448409]
[1741413828491,4e-05,86231.0,86230.0,0.1159897]
[1741413828695,4e-05,86231.0,86230.0,0.1642897]
[1741413828991,4e-05,86231.0,86230.0,0.24781415]
[1741413829388,0.03817952,86238.0,86230.0,0.24781415]
[1741413829592,0.1916563,86240.0,86235.0,0.418791]
[1741413829893,0.1916563,86240.0,86239.0,0.1159776]
[1741413830593,0.1916563,86240.0,86239.0,0.15390205]
[1741413830794,0.1916563,86240.0,86239.0,0.24640205]
[1741413832085,0.2309052,86240.0,86239.0,0.24640205]
[1741413834490,0.1552252,86240.0,86239.0,0.24640205]
[1741413835191,0.0392489,86240.0,86239.0,0.24640205]
[1741413835390,0.1159763,86240.0,86239.0,0.24640205]
[1741413835696,4e-05,86242.0,86241.0,0.1159749]
[1741413835893,0.1160136,86242.0,86241.0,0.1159749]
[1741413836295,0.15504585,86242.0,86241.0,0.1159749]
[1741413836689,0.15504585,86242.0,86241.0,0.2107749]
[1741413837195,0.15504585,86242.0,86241.0,0.24869935]
[1741413837395,0.0579858,86244.0,86241.0,0.24869935]
[1741413837697,0.11427691,86311.0,86265.0,0.1159427]
[1741413837698,0.3608,86282.0,86265.0,0.1159427]
[1741413837994,0.3608,86282.0,86265.0,0.51466715]
[1741413837995,0.1159813,86266.0,86265.0,0.51466715]
[1741413838188,0.15501741,86266.0,86265.0,0.51466715]
[1741413838385,0.15497741,86266.0,86265.0,0.51466715]
[1741413838585,0.03903611,86266.0,86265.0,0.60696715]
[1741413838792,0.00017355,86274.0,86265.0,0.49102445]
[1741413838996,0.11610415,86274.0,86273.0,0.3608]
[1741413839196,0.1159319,86273.0,86272.0,0.4767327]
[1741413839795,0.15482517,86273.0,86272.0,0.4767327]
[1741413841193,0.15482517,86273.0,86272.0,0.4767333]
[1741413841695,0.15482517,86273.0,86272.0,0.3608]
[1741413843401,0.20002517,86273.0,86272.0,0.3608]
[1741413843596,0.20002517,86273.0,86272.0,0.4767333]
[1741413844004,0.03889327,86273.0,86272.0,0.4767333]
[1741413844303,0.00017355,86274.0,86273.0,0.1159319]
[1741413844902,0.11610415,86274.0,86273.0,0.1159319]
[1741413845290,0.03290698,86274.0,86273.0,0.1159319]
[1741413847303,0.1159253,86278.0,86272.0,0.3608]
[1741413847490,0.14890428,86278.0,86277.0,0.1159266]
[1741413853198,0.14890428,86278.0,86277.0,0.1635266]
[1741413854105,0.14890428,86278.0,86277.0,0.17243]
[1741413854304,0.03297898,86278.0,86277.0,0.17243]
[1741413854512,4e-05,86282.0,86277.0,0.17243]
[1741413854513,4e-05,86282.0,86281.0,0.1159212]
[1741413855122,0.07846608,86282.0,86281.0,0.1159212]
[1741413855322,0.07842608,86282.0,86281.0,0.1159212]
[1741413855515,0.19434588,86282.0,86281.0,0.1159212]
[1741413855717,0.24154588,86282.0,86281.0,0.1159212]
[1741413856035,0.1159212,86281.0,86280.0,0.045]
[1741413856419,0.2094212,86281.0,86280.0,0.1609225]
[1741413857822,0.0935,86281.0,86277.0,0.0089034]
[1741413858118,0.03362608,86282.0,86281.0,0.1159212]
[1741413858318,0.0001237,86284.0,86281.0,0.1159212]
[1741413858319,0.1159189,86283.0,86281.0,0.1159212]
[1741413858525,0.0486,86283.0,86282.0,0.1644198]
[1741413858728,0.0486,86283.0,86282.0,0.2088198]
[1741413859525,0.08232404,86283.0,86282.0,0.2088198]
[1741413860116,0.03372404,86283.0,86282.0,0.2088198]
[1741413860323,0.0001237,86284.0,86282.0,0.2088198]
[1741413860522,0.0001237,86284.0,86283.0,0.4767185]
[1741413860926,0.0001237,86284.0,86283.0,0.5715185]
[1741413861930,4e-05,86288.0,86287.0,0.1159131]
[1741413862239,0.2158969,86300.0,86299.0,0.115897]
[1741413862417,0.24878804,86300.0,86299.0,0.476697]
[1741413862827,0.24878804,86300.0,86299.0,0.47678675]
[1741413863028,0.24878804,86300.0,86299.0,0.52238675]
[1741413863730,0.24878804,86300.0,86299.0,0.56678675]
[1741413865125,0.13289114,86300.0,86299.0,0.56678675]
[1741413865326,0.24878684,86300.0,86299.0,0.56678675]
[1741413866037,0.13289114,86300.0,86299.0,0.56678675]
[1741413868232,0.24878684,86300.0,86299.0,0.56678675]
[1741413868934,0.13289114,86300.0,86299.0,0.56678675]
[1741413869137,0.24878684,86300.0,86299.0,0.56678675]
[1741413870639,0.24878684,86300.0,86299.0,0.20598675]
[1741413871139,0.13289114,86300.0,86299.0,0.56678675]
[1741413872538,0.1836515,86300.0,86299.0,0.56678675]
[1741413872940,0.1836515,86300.0,86299.0,8.975e-05]
[1741413873637,0.2285515,86300.0,86299.0,8.975e-05]
[1741413875235,0.2285515,86300.0,86299.0,0.11598675]
[1741413875435,0.2285515,86300.0,86299.0,8.975e-05]
[1741413876340,0.2285515,86300.0,86299.0,0.11598675]
[1741413876543,0.2285515,86300.0,86299.0,0.19968675]
[1741413877633,0.1126558,86300.0,86299.0,0.19968675]
[1741413877839,0.1126558,86300.0,86299.0,0.24318675]
[1741413879633,0.0677558,86300.0,86299.0,0.24318675]
[1741413881538,0.03486466,86300.0,86299.0,0.24318675]
[1741413881739,0.14874691,86308.0,86301.0,0.0579467]
[1741413881941,0.1158856,86308.0,86307.0,0.4766863]
[1741413882843,0.05075148,86308.0,86307.0,0.4766863]
[1741413883042,0.05075148,86308.0,86307.0,0.5614863]
[1741413884041,0.03373717,86309.0,86307.0,0.5614863]
[1741413884242,0.1601828,86312.0,86311.0,0.1158782]
[1741413884638,0.2041828,86312.0,86311.0,0.1158782]
[1741413885439,0.23699766,86312.0,86311.0,0.1158782]
[1741413886738,0.23699766,86312.0,86311.0,0.2046782]
[1741413890452,0.15739513,86312.0,86311.0,0.24260265]
[1741413891243,0.15748089,86312.0,86311.0,0.2046782]
[1741413891740,0.07690062,86312.0,86311.0,0.2046782]
[1741413891935,0.19278342,86312.0,86311.0,0.2046782]
[1741413892134,0.14878342,86312.0,86311.0,0.2046782]
[1741413892752,0.14878342,86312.0,86311.0,0.24260265]
[1741413893041,0.08365409,86312.0,86311.0,0.24260265]
[1741413893349,0.12945409,86312.0,86311.0,0.24260265]
[1741413894848,0.1628919,86312.0,86311.0,0.24260265]
[1741413895250,0.2083919,86312.0,86311.0,0.24260265]
[1741413895943,0.2083919,86312.0,86311.0,0.60340265]
[1741413900555,0.12473781,86312.0,86311.0,0.60340265]
[1741413900852,0.07923781,86312.0,86311.0,0.60340265]
[1741413902449,0.19511731,86312.0,86311.0,0.60340265]
[1741413902647,4e-05,86319.0,86311.0,0.82475748]
[1741413902956,4e-05,86319.0,86318.0,0.4766715]
[1741413903145,4e-05,86319.0,86318.0,0.51459595]
[1741413903343,0.1158702,86319.0,86318.0,0.39872445]
[1741413903655,0.1158702,86319.0,86318.0,0.60019595]
[1741413903856,0.08344494,86319.0,86318.0,0.60019595]
[1741413904056,0.00385012,86319.0,86318.0,0.60019595]
[1741413904259,0.0447,86319.0,86318.0,0.60019595]
[1741413904555,0.1605702,86319.0,86318.0,0.60019595]
[1741413904752,0.43592,86338.0,86334.0,0.1158481]
[1741413905054,0.1158473,86336.0,86335.0,0.2041487]
[1741413905253,0.1158473,86336.0,86335.0,0.1285]
[1741413905458,0.1563473,86336.0,86335.0,0.1285]
[1741413906257,0.1994473,86336.0,86335.0,0.1285]
[1741413906458,0.1158554,86330.0,86329.0,0.03792445]
[1741413906644,0.1158554,86330.0,86329.0,0.08202445]
[1741413906845,0.1158554,86330.0,86329.0,0.19788115]
[1741413907059,0.1158554,86330.0,86329.0,0.2041567]
[1741413907356,0.1994554,86330.0,86329.0,0.2041567]
[1741413907960,0.0836,86330.0,86329.0,0.2041567]
[1741413908149,0.0431,86330.0,86329.0,0.2041567]
[1741413909857,0.1589554,86330.0,86329.0,0.2041567]
[1741413910156,0.1589554,86330.0,86329.0,0.0441]
[1741413910357,0.1589554,86330.0,86329.0,0.087]
[1741413910554,0.1589554,86330.0,86329.0,0.2028567]
[1741413910947,0.1589554,86330.0,86329.0,0.087]
[1741413912847,0.1589554,86330.0,86329.0,0.2028567]
[1741413913059,0.1589554,86330.0,86329.0,0.087]
[1741413914061,0.1158513,86334.0,86333.0,0.11585]
[1741413914265,0.1560513,86334.0,86333.0,0.11585]
[1741413914650,0.1979513,86334.0,86333.0,0.11585]
[1741413914857,0.1979513,86334.0,86333.0,0.47665]
[1741413915053,0.03299662,86338.0,86337.0,0.115846]
[1741413915255,0.1158447,86338.0,86337.0,0.115846]
[1741413915456,0.15793486,86338.0,86337.0,0.115846]
[1741413916157,0.115846,86337.0,86336.0,0.115846]
[1741413916353,0.09093193,86337.0,86336.0,0.115846]
[1741413917367,0.1158473,86336.0,86335.0,0.03792445]
[1741413917662,0.2044473,86336.0,86335.0,0.03792445]
[1741413918064,0.11585,86334.0,86333.0,5.483e-05]
[1741413918564,0.55177,86334.0,86333.0,5.483e-05]
[1741413918752,0.59597,86334.0,86333.0,5.483e-05]
[1741413918958,0.48012,86334.0,86321.0,0.03792445]
[1741413919158,0.1158661,86322.0,86321.0,0.03792445]
[1741413919756,0.1158702,86319.0,86315.0,0.03792445]
[1741413919963,0.1158742,86316.0,86315.0,0.03792445]
[1741413920159,0.1158742,86316.0,86315.0,0.0465496]
[1741413920765,0.2042742,86316.0,86315.0,0.0465496]
[1741413921364,0.2042742,86316.0,86315.0,0.12450065]
[1741413922467,0.2042742,86316.0,86315.0,0.00862515]
[1741413922763,0.1158755,86315.0,86314.0,0.36253787]